Workbook

Sheet الاسماء
A2: م | B2: رقم عقد الأيجار | C2: أسم المستأجر | D2: رقم الهوية/ الأقامة | E2: جهة العمل / الكفيل | F2: الجنسية | G2: الوحدة | H2: الشقة | I2: وصف الشقة | J2: رقم التليفون | K2: قيمة الايجار السنوي | L2: فترة الأيجار/ يوم | M2: فترة الايجار بالشهر | N2: قمية الأيجار عن الفترة | O2: تاريخ بداية العقد م | P2: تاريخ بداية العقد هـ | Q2: تاريخ الأستحقاق م | R2: تاريخ الاستحقاق هـ | S2: حالة الأيجار
A3: 1 | B3: 101 | C3: عميدنا / الدغيدي | D3: 1234567890 | E3: أوفيسنا | F3: مصري | G3: شقة | H3: 13 | I3: الدور ( 3 ) مبنى رقم ( 2 ) | J3: 501234567 | K3: 25000 | L3: =IF($M3<>"",VLOOKUP($M3,{"شهري","30 ";"ربع سنوي","90";"نصف سنوي","180";"سنوي","360"},2,0),"") -> 90 | M3: ربع سنوي | N3: =IF(K3<>"",K3/360*L3,"") -> 6250 | O3: 2012-10-16 | P3: =IF(O3<>"",TEXT(O3,"b2YYYY/mM/dD"),"") -> 1433/12/01 | Q3: 2014-07-08 | R3: =IF(Q3<>"",TEXT(Q3,"b2YYYY/mM/dD"),"") -> 1435/09/11 | S3: =IF(Q3<>"",IF(Q3>TODAY(),"غير مستحقة","مستحقة"),"") -> مستحقة
A4: 2 | B4: 102 | C4: أستاذنا الحاج / مجدي يونس | D4: 1234567891 | E4: أوفيسنا | F4: مصري | G4: شقة | H4: 15 | I4: الدور ( 3 ) مبنى رقم ( 2 ) | J4: 501234567 | K4: 25000 | L4: =IF($M4<>"",VLOOKUP($M4,{"شهري","30 ";"ربع سنوي","90";"نصف سنوي","180";"سنوي","360"},2,0),"") -> 90 | M4: ربع سنوي | N4: =IF(K4<>"",K4/360*L4,"") -> 6250 | O4: 2009-11-18 | P4: =IF(O4<>"",TEXT(O4,"b2YYYY/mM/dD"),"") -> 1430/12/01 | Q4: 2014-10-07 | R4: =IF(Q4<>"",TEXT(Q4,"b2YYYY/mM/dD"),"") -> 1435/12/13 | S4: =IF(Q4<>"",IF(Q4>TODAY(),"غير مستحقة","مستحقة"),"") -> مستحقة
A5: 3 | B5: 103 | C5: معلمنا /عبدالله باقشير | D5: 1234567892 | E5: أوفيسنا | F5: اليمن | G5: شقة | H5: 10 | I5: الدور ( 3 ) مبنى رقم ( 2 ) | J5: 501234569 | K5: 25000 | L5: =IF($M5<>"",VLOOKUP($M5,{"شهري","30 ";"ربع سنوي","90";"نصف سنوي","180";"سنوي","360"},2,0),"") -> 90 | M5: ربع سنوي | N5: 6250 | O5: 2010-01-16 | P5: 1431/02/01 | Q5: =DATE(YEAR(O5),MONTH(O5)+(L5/30),DAY(O5)) -> 2010-04-16 | R5: 1431/05/03 | S5: مستحقة
A6: 4 | B6: 104 | C6: أستاذنا/ عباد نصار | D6: 1234567893 | E6: أوفيسنا | F6: اليمن | G6: شقة | H6: 5 | I6: الدور ( 2 ) مبنى رقم ( 2 ) | J6: 501234570 | K6: 25000 | L6: =IF($M6<>"",VLOOKUP($M6,{"شهري","30 ";"ربع سنوي","90";"نصف سنوي","180";"سنوي","360"},2,0),"") -> 180 | M6: نصف سنوي | N6: 12500 | O6: 2011-06-02 | P6: =IF(O6<>"",TEXT(O6,"b2YYYY/mM/dD"),"") -> 1432/07/01 | Q6: 2011-12-02 | R6: 1433/01/07 | S6: مستحقة
A7: 5 | B7: 105 | C7: أستاذ/ أبوحنين | D7: 1234567894 | E7: أوفيسنا | F7: الجزائر | G7: شقة | H7: 16 | I7: الدور ( 4 ) مبنى رقم ( 2 ) | J7: 501234571 | K7: 20000 | L7: =IF($M7<>"",VLOOKUP($M7,{"شهري","30 ";"ربع سنوي","90";"نصف سنوي","180";"سنوي","360"},2,0),"") -> 180 | M7: نصف سنوي | N7: 10000 | O7: 2011-10-28 | P7: 1432/12/01 | Q7: 2012-04-28 | R7: 1433/06/07 | S7: مستحقة
A8: 6 | B8: 106 | C8: أستاذ/ حمادة عمر | D8: 1234567895 | E8: أوفيسنا | F8: مصري | G8: شقة | H8: 18 | I8: الدور ( 5 ) مبنى رقم ( 2 ) | J8: 501234572 | K8: 20000 | L8: =IF($M8<>"",VLOOKUP($M8,{"شهري","30 ";"ربع سنوي","90";"نصف سنوي","180";"سنوي","360"},2,0),"") -> 180 | M8: نصف سنوي | N8: 10000 | O8: 2011-11-27 | P8: 1433/01/02 | Q8: 2013-11-03 | R8: 1434/12/30 | S8: مستحقة
A9: 7 | B9: 107 | C9: أستاذ / سعيد بيرم | D9: 1234567896 | E9: أوفيسنا | F9: مصري | G9: شقة | H9: 17 | I9: الدور ( 5 ) مبنى رقم ( 2 ) | J9: 501234573 | K9: 20000 | L9: =IF($M9<>"",VLOOKUP($M9,{"شهري","30 ";"ربع سنوي","90";"نصف سنوي","180";"سنوي","360"},2,0),"") -> 180 | M9: نصف سنوي | N9: 10000 | O9: 2011-12-25 | P9: 1433/01/30 | Q9: 2013-11-30 | R9: 1435/01/27 | S9: مستحقة
A10: 8 | B10: 108 | C10: أستاذ/ سعد عابد | D10: 1234567897 | E10: أوفيسنا | F10: مصري | G10: شقة | H10: 13 | I10: الدور ( 4 ) مبنى رقم ( 2 ) | J10: 501234574 | K10: 15000 | L10: =IF($M10<>"",VLOOKUP($M10,{"شهري","30 ";"ربع سنوي","90";"نصف سنوي","180";"سنوي","360"},2,0),"") -> 30 | M10: شهري | N10: 1250 | O10: 2011-12-25 | P10: 1433/01/30 | Q10: 2012-01-25 | R10: 1433/03/02 | S10: مستحقة
A11: 9 | B11: 109 | C11: أستاذ/ عباس السماوي | D11: 1234567898 | E11: أوفيسنا | F11: مصري | G11: شقة | H11: 14 | I11: الدور ( 4 ) مبنى رقم ( 2 ) | J11: 501234575 | K11: 15000 | L11: =IF($M11<>"",VLOOKUP($M11,{"شهري","30 ";"ربع سنوي","90";"نصف سنوي","180";"سنوي","360"},2,0),"") -> 90 | M11: ربع سنوي | N11: 3750 | O11: 2011-12-25 | P11: 1433/01/30 | Q11: 2012-03-25 | R11: 1433/05/03 | S11: مستحقة
A12: 10 | B12: 110 | C12: استاذ/ شوقي ربيع | D12: 1234567899 | E12: أوفيسنا | F12: الجزائر | G12: شقة | H12: 10 | I12: الدور ( 3 ) مبنى رقم ( 1 ) | J12: 501234576 | K12: 18000 | L12: =IF($M12<>"",VLOOKUP($M12,{"شهري","30 ";"ربع سنوي","90";"نصف سنوي","180";"سنوي","360"},2,0),"") -> 90 | M12: ربع سنوي | N12: 4500 | O12: 2011-12-25 | P12: 1433/01/30 | Q12: 2012-03-25 | R12: 1433/05/03 | S12: مستحقة
A13: 11 | B13: 111 | C13: أستاذ/ خالد القدس | D13: 1234567900 | E13: أوفيسنا | F13: السودان | G13: شقة | H13: 18 | I13: الدور ( 5 ) مبنى رقم ( 1 ) | J13: 501234577 | K13: 18000 | L13: =IF($M13<>"",VLOOKUP($M13,{"شهري","30 ";"ربع سنوي","90";"نصف سنوي","180";"سنوي","360"},2,0),"") -> 90 | M13: ربع سنوي | N13: 4500 | O13: 2011-12-25 | P13: 1433/01/30 | Q13: 2012-03-25 | R13: 1433/05/03 | S13: مستحقة
A14: 12 | B14: 112 | C14: أستاذ/ جمال عبدالسميع | D14: 1234567901 | E14: أوفيسنا | F14: مصري | G14: شقة | H14: 6 | I14: الدور ( 2 ) مبنى رقم ( 1 ) | J14: 501234578 | K14: 20000 | L14: =IF($M14<>"",VLOOKUP($M14,{"شهري","30 ";"ربع سنوي","90";"نصف سنوي","180";"سنوي","360"},2,0),"") -> 90 | M14: ربع سنوي | N14: 5000 | O14: 2013-01-12 | P14: 1434/03/01 | Q14: 2013-04-12 | R14: 1434/06/02 | S14: مستحقة
A15: 13 | B15: 113 | C15: أستاذ/ احمد فؤاد | D15: 1234567902 | E15: أوفيسنا | F15: مصري | G15: شقة | H15: 13 | I15: الدور ( 4 ) مبنى رقم ( 1 ) | J15: 501234579 | K15: 15000 | L15: =IF($M15<>"",VLOOKUP($M15,{"شهري","30 ";"ربع سنوي","90";"نصف سنوي","180";"سنوي","360"},2,0),"") -> 90 | M15: ربع سنوي | N15: 3750 | O15: 2013-01-12 | P15: 1434/03/01 | Q15: 2013-04-12 | R15: 1434/06/02 | S15: مستحقة
A16: 14 | B16: 114 | C16: أستاذ/ قنديل الصياد | D16: 1234567903 | E16: أوفيسنا | F16: مصري | G16: شقة | H16: 11 | I16: الدور ( 3 ) مبنى رقم ( 1 ) | J16: 501234580 | K16: 15000 | L16: =IF($M16<>"",VLOOKUP($M16,{"شهري","30 ";"ربع سنوي","90";"نصف سنوي","180";"سنوي","360"},2,0),"") -> 180 | M16: نصف سنوي | N16: 7500 | O16: 2013-01-12 | P16: 1434/03/01 | Q16: 2013-07-12 | R16: 1434/09/05 | S16: مستحقة
A17: 15 | B17: 115 | C17: استاذ/ مجمود الأسيوطي | D17: 1234567904 | E17: أوفيسنا | F17: مصري | G17: شقة | H17: 16 | I17: الدور ( 4 ) مبنى رقم ( 1 ) | J17: 501234581 | K17: 18000 | L17: =IF($M17<>"",VLOOKUP($M17,{"شهري","30 ";"ربع سنوي","90";"نصف سنوي","180";"سنوي","360"},2,0),"") -> 90 | M17: ربع سنوي | N17: 4500 | O17: 2013-01-12 | P17: 1434/03/01 | Q17: 2013-04-12 | R17: 1434/06/02 | S17: مستحقة
A18: 16 | B18: 116 | C18: أستاذ/ ابراهيم ابو ليلة | D18: 1234567905 | E18: أوفيسنا | F18: مصري | G18: شقة | H18: 3 | I18: الدور ( 1 ) مبنى رقم ( 1 ) | J18: 501234582 | K18: 15000 | L18: =IF($M18<>"",VLOOKUP($M18,{"شهري","30 ";"ربع سنوي","90";"نصف سنوي","180";"سنوي","360"},2,0),"") -> 90 | M18: ربع سنوي | N18: 3750 | O18: 2013-04-11 | P18: 1434/06/01 | Q18: 2013-07-11 | R18: 1434/09/04 | S18: مستحقة
A19: 17 | B19: 117 | C19: أستاذ/ جلال الجمال | D19: 1234567906 | E19: أوفيسنا | F19: مصري | G19: شقة | H19: 9 | I19: مبنى رقم ( 2 ) | J19: 501234583 | K19: 18000 | L19: =IF($M19<>"",VLOOKUP($M19,{"شهري","30 ";"ربع سنوي","90";"نصف سنوي","180";"سنوي","360"},2,0),"") -> 180 | M19: نصف سنوي | N19: 9000 | O19: 2013-04-11 | P19: 1434/06/01 | Q19: 2013-10-11 | R19: 1434/12/07 | S19: مستحقة
A20: 18 | B20: 118 | C20: أستاذة / أم عبدالله | D20: 1234567907 | E20: أوفيسنا | F20: مصري | G20: شقة | H20: 14 | I20: الدور ( 4 ) مبنى رقم ( 1 ) | J20: 501234584 | K20: 15000 | L20: =IF($M20<>"",VLOOKUP($M20,{"شهري","30 ";"ربع سنوي","90";"نصف سنوي","180";"سنوي","360"},2,0),"") -> 180 | M20: نصف سنوي | N20: 7500 | O20: 2013-04-11 | P20: 1434/06/01 | Q20: 2013-10-11 | R20: 1434/12/07 | S20: مستحقة
A21: 19 | B21: 119 | C21: أستاذ/ حمادة الباشا | D21: 1234567908 | E21: أوفيسنا | F21: مصري | G21: شقة | H21: 17 | I21: الدور ( 5 ) مبنى رقم ( 1 ) | J21: 501234585 | K21: 15000 | L21: =IF($M21<>"",VLOOKUP($M21,{"شهري","30 ";"ربع سنوي","90";"نصف سنوي","180";"سنوي","360"},2,0),"") -> 180 | M21: نصف سنوي | N21: 7500 | O21: 2013-04-11 | P21: 1434/06/01 | Q21: 2013-10-11 | R21: 1434/12/07 | S21: مستحقة
A22: 20 | B22: 120 | C22: أستاذ/ طلعت محمد حسن | D22: 1234567909 | E22: أوفيسنا | F22: مصري | G22: شقة | H22: 20 | I22: الدور ( 6 ) مبنى رقم ( 1 ) | J22: 501234586 | K22: 18000 | L22: =IF($M22<>"",VLOOKUP($M22,{"شهري","30 ";"ربع سنوي","90";"نصف سنوي","180";"سنوي","360"},2,0),"") -> 180 | M22: نصف سنوي | N22: 9000 | O22: 2013-04-11 | P22: 1434/06/01 | Q22: 2013-10-11 | R22: 1434/12/07 | S22: مستحقة
A23: 21 | B23: 121 | C23: أستاذ/ الشهابي | D23: 1234567910 | E23: أوفيسنا | F23: اليمن | G23: شقة | H23: 2 | I23: الدور ( 1 ) مبنى رقم ( 1 ) | J23: 501234587 | K23: 20000 | L23: =IF($M23<>"",VLOOKUP($M23,{"شهري","30 ";"ربع سنوي","90";"نصف سنوي","180";"سنوي","360"},2,0),"") -> 180 | M23: نصف سنوي | N23: 10000 | O23: 2013-04-11 | P23: 1434/06/01 | Q23: 2013-10-11 | R23: 1434/12/07 | S23: مستحقة
A24: 22 | B24: 122 | C24: العبد الفقير لله / ضاحي الغريب | D24: 1234567911 | E24: أوفيسنا | F24: مصري | G24: غرفة | H24: 7 | I24: البدروم - مبني رقم (1) | J24: 501234588 | K24: 10000 | L24: =IF($M24<>"",VLOOKUP($M24,{"شهري","30 ";"ربع سنوي","90";"نصف سنوي","180";"سنوي","360"},2,0),"") -> 90 | M24: ربع سنوي | N24: 2500 | O24: 2013-04-11 | P24: 1434/06/01 | Q24: 2013-07-11 | R24: 1434/09/04 | S24: مستحقة

Sheet اليومية
U3: ايراد نقدى
U4: ايراد بشيكات
A5: حوالات بنكية : | B5: =SUMIF(C11:C1064,"*تحويل*",F11:F1064) -> 7000 | D5: إيـداعـات بـنـكـية : | E5: =SUMIF(C11:C1064,"*ايداع*",F11:F1064) -> 226300 | F5: الرصيد : | G5: =B8-F7-E5-B5 -> 14 | U5: ايداع شيك
A6: ايرادات نقدية : | B6: =SUMIF(C11:C1064,"*ايراد نقدى*",E11:E1064) -> 178227 | D6: جملة مصروفات الصيانة : | E6: =SUMIF(C11:C1064,"*مصروفات*",F11:F1064) -> 13623 | F6: جمله المصروفات : | U6: ايداع نقدى
A7: ايرادات بشيكات : | B7: =SUMIF(C11:C1064,"*ايراد بشيكات*",E11:E1064) -> 74500 | D7: جملة الرواتب المدفوعة : | E7: =SUMIF(C11:C1064,"*صرف رواتب*",F11:F1064) -> 3200 | F7: =SUM(E6:E8) -> 19413 | U7: تحويل للحساب
A8: جملة الايرادات : | B8: =B6+B7 -> 252727 | D8: تصفيات خروج مستاجرين : | E8: =SUMIF(C12:C1065,"*خروج مستأجر*",F12:F1065) -> 2590 | F8: رصيد مرحل : | G8: 2000 | U8: مصروفات
A9: التاريخ | B9: رقم السند | C9: نوع السند | D9: البيان | E9: العملية | G9: الرصيد
E10: مدين | F10: دائن
A11: 18-9-1434 | B11: 472 | C11: ايراد نقدى | D11: شقة رقم 18 عمارة 1 | E11: 20000 | G11: =IF(AND(E11="",F11=""),"",G8+F11-E11) -> -18000
A12: 18-9-1434 | B12: بدون | C12: مصروفات | D12: كهرباء مصاعد العمارتين | F12: 525 | G12: =IF(AND(E12="",F12=""),"",G11+F12-E12) -> -17475
A13: 20-9-1434 | B13: 473 | C13: ايراد نقدى | D13: شقة رقم 18 عمارة 2 | E13: 777 | G13: =IF(AND(E13="",F13=""),"",G12+F13-E13) -> -18252
A14: 20-9-1434 | B14: 474 | C14: ايراد نقدى | D14: شقة رقم 14 عمارة 2 | E14: 17500 | G14: =IF(AND(E14="",F14=""),"",G13+F14-E14) -> -35752
A15: 22-9-1434 | B15: 267 | C15: مصروفات | D15: ف كهرباء شراء لمبات | F15: 60 | G15: -35692
A16: 25-9-1434 | B16: 463 | C16: خروج مستأجر | D16: تصفية حساب شقة 16 ع 2 | F16: 1300 | G16: -34392
A17: 25-9-1434 | B17: 477 | C17: ايراد نقدى | D17: شقة رقم 5 عمارة 1 | E17: 17000 | G17: -51392
A18: 25-9-1434 | B18: 476 | C18: ايراد بشيكات | D18: شقة رقم 10 عمارة 1 | E18: 17500 | G18: -68892
A19: 25-9-1434 | B19: بدون | C19: ايداع شيك | D19: شقة رقم 10 عمارة1 رقم 50002 | F19: 17500 | G19: -51392
A20: 25-9-1434 | B20: 464 | C20: مصروفات | D20: مصروفات شغل يد + سباكة وكهرباء | F20: 265 | G20: -51127
A21: 25-9-1434 | B21: 3358 | C21: مصروفات | D21: رول دهان | F21: 15 | G21: -51112
A22: 25-9-1434 | B22: 3357 | C22: مصروفات | D22: مواد دهان | F22: 339 | G22: -50773
A23: 25-9-1434 | B23: 465 | C23: خروج مستأجر | D23: تصفية تأمين شقة 15 ع 2 | F23: 1290 | G23: -49483
A24: 27-9-1434 | B24: بدون | C24: ايداع نقدى | D24: دفعة من الايجارات على حسابكم بالراجحى | F24: 40000 | G24: -9483
A25: 5-10-1434 | B25: 481 | C25: ايراد نقدى | D25: ايجار شقة رقم 20 ع 2 مدة 53 يوم | E25: 5000 | G25: -14483
A26: 5-10-1434 | B26: 480 | C26: ايراد نقدى | D26: غرفة مبنى رقم 2 | E26: 1600 | G26: -16083
A27: 5-10-1434 | B27: 478 | C27: ايراد نقدى | D27: ايجار شقة رقم 15 ع رقم 2 | E27: 17500 | G27: -33583
A28: 5-10-1434 | B28: 479 | C28: ايراد نقدى | D28: تأمين شقة رقم 15 ع رقم 2 | E28: 2000 | G28: -35583
A29: 5-10-1434 | B29: 467 | C29: صرف رواتب | D29: راتب س عن شهر رمضان | F29: 800 | G29: -34783
A30: 5-10-1434 | B30: 466 | C30: صرف رواتب | D30: راتب ص عن شهر رمضان | F30: 800 | G30: -33983
A31: 5-10-1434 | B31: 468 | C31: تحويل للحساب | D31: حوالتين 6 الف + الف من شقة رقم 15 ع 2 | F31: 7000 | G31: -26983
A32: 5-10-1434 | B32: 469 | C32: مصروفات | D32: شفط البيارة عمارة رقم 1 شهر رمضان / يوليو | F32: 1400 | G32: -25583
A33: 5-10-1434 | B33: 470 | C33: مصروفات | D33: شفط البيارة عمارة رقم 2 شهر رمضان / يوليو | F33: 640 | G33: -24943
A34: 7-10-1434 | B34: 483 | C34: ايراد نقدى | D34: شقة رقم 11 الدور 3 مبنى رقم 2 | E34: 8750 | G34: -33693
A35: 7-10-1434 | B35: 482 | C35: ايراد نقدى | D35: شقة رقم 20 الدور 6 مبنى رقم 1 | E35: 17000 | G35: -50693
A36: 7-10-1434 | B36: 3400 | C36: مصروفات | D36: ف دهانات الجزيرة | F36: 1030 | G36: -49663
A37: 7-10-1434 | B37: 6717 | C37: مصروفات | D37: مؤسسه باغلف كالونات | F37: 75 | G37: -49588
A38: 7-10-1434 | B38: 6754 | C38: مصروفات | D38: مؤسسه باغلف جبس + فرشة | F38: 20 | G38: -49568
A39: 7-10-1434 | B39: 472 | C39: مصروفات | D39: دهان شقة رقم 16 + 17 عمارة رقم 2 | F39: 1600 | G39: -47968
A40: 7-10-1434 | B40: 471 | C40: مصروفات | D40: تصليح ودهان الباب شقة 16 عمارة رقم 2 | F40: 365 | G40: -47603
A41: 7-10-1434 | B41: 6786 | C41: مصروفات | D41: رول + شكرتون عمارة 2 | F41: 19 | G41: -47584
A42: 7-10-1434 | B42: 474 | C42: مصروفات | D42: شغل بلاط + شغل كهرباء ع ( 2 ) | F42: 120 | G42: -47464
A43: 12-10-1434 | B43: 484 | C43: ايراد بشيكات | D43: تأمين شقة رقم 18 ع رقم 2 | E43: 2000 | G43: -49464
A44: 12-10-1434 | B44: 485 | C44: ايراد بشيكات | D44: ايجار شقة رقم 18 ع رقم 2 | E44: 20000 | G44: -69464
A45: 12-10-1434 | B45: بدون | C45: ايداع شيك | D45: ايداع شيك رقم 231 ايجار وتأمين شقة رقم 18 ع رقم 2 | F45: 22000 | G45: -47464
A46: 12-10-1434 | B46: بدون | C46: ايداع نقدى | D46: دفعة من الايجارات على حسابكم بالراجحى | F46: 42000 | G46: -5464
A47: 12-10-1434 | B47: 4921 | C47: مصروفات | D47: تسليك قاعدة حمام بالاسمنت ع 2 شقة 5 | F47: 50 | G47: -5414
A48: 16-10-1434 | B48: 196 | C48: ايراد نقدى | D48: ايجار شقة رقم 8 ع رقم 2 لمدة 3 شهور سند قديم تكملة الايجار | E48: 8500 | G48: -13914
A49: 22-10-1434 | B49: 487 | C49: ايراد بشيكات | D49: ايجار شقة رقم 1 ع رقم 1 شيك رقم 11 الراجحى | E49: 17500 | G49: -31414
A50: 22-10-1434 | B50: 489 | C50: ايراد نقدى | D50: ايجار شقة رقم 12 ع رقم 2 لمدة 75 يوم | E50: 7000 | G50: -38414
A51: 25-10-1434 | B51: 490 | C51: ايراد نقدى | D51: ايجار غرفة بعمارة 2 | E51: 1600 | G51: -40014
A52: 25-10-1434 | B52: بدون | C52: مصروفات | D52: فواتير الكهرباء 3 شقق + مصاعد | F52: 922 | G52: -39092
A53: 26-10-1434 | B53: بدون | C53: ايداع شيك | D53: ايجار شقة رقم 1 ع رقم 1 شيك رقم 11 الراجحى | F53: 17500 | G53: -21592
A54: 26-10-1434 | B54: بدون | C54: ايداع نقدى | D54: دفعة من الايجارات على حسابكم بالراجحى | F54: 20000 | G54: -1592
A55: 27-10-1434 | B55: 491 | C55: ايراد نقدى | D55: تامين شقة رقم 16 عمارة رقم 2 | E55: 2000 | G55: -3592
A56: 27-10-1434 | B56: 492 | C56: ايراد نقدى | D56: ايجار شقة رقم 16 عمارة رقم 2 | E56: 17500 | G56: -21092
A57: 27-10-1434 | B57: بدون | C57: مصروفات | D57: فاتورة مياه عمارة 1 | F57: 1097 | G57: -19995
A58: 28-10-1434 | B58: 879 | C58: مصروفات | D58: تجديد اقامة س+ رسوم بريد | F58: 450 | G58: -19545
A59: 2-11-1434 | B59: 252 | C59: مصروفات | D59: اصلاح مكيف + غسيل غرفة نواز عمارة 1 | F59: 150 | G59: -19395
A60: 2-11-1434 | B60: 475 | C60: صرف رواتب | D60: راتب شهر شوال 1434 هـ ن | F60: 800 | G60: -18595
A61: 2-11-1434 | B61: 476 | C61: صرف رواتب | D61: راتب شهر شوال 1434 هـ س | F61: 800 | G61: -17795
A62: 2-11-1434 | B62: 477 | C62: مصروفات | D62: سند اصلاح بانيو + كرسى حمام + سيلكون شقة 20 عمارة 2 | F62: 256 | G62: -17539
A63: 7-11-1434 | B63: 493 | C63: ايراد نقدى | D63: ايجار شقة رقم 19 عمارة رقم 2 | E63: 17000 | G63: -34539
A64: 7-11-1434 | B64: 478 | C64: مصروفات | D64: شفط البيارة عمارة رقم 2 شهر اغسطس | F64: 800 | G64: -33739
A65: 7-11-1434 | B65: 479 | C65: مصروفات | D65: شفط البيارة عمارة رقم1 شهر اغسطس | F65: 1400 | G65: -32339
A66: 10-11-1434 | B66: 3642 | C66: مصروفات | D66: فاتورة الجزيرة للدهان 2 | F66: 975 | G66: -31364
A67: 10-11-1434 | B67: 480 | C67: مصروفات | D67: اصلاح مكيف شقة 8 عمارة 2 + دهان شقة 20 عمارة 2 كاملة + مجلس شقة 4 عمارة 1 | F67: 1050 | G67: -30314
A68: 10-11-1434 | B68: 494 | C68: ايراد نقدى | D68: ايجار شقة 6 عمارة 2 | E68: 17500 | G68: -47814
A69: 10-11-1434 | B69: 495 | C69: ايراد بشيكات | D69: ايجار شقة 2 عمارة 2 شيك رقم 101 | E69: 17500 | G69: -65314
A70: 10-11-1434 | B70: بدون | C70: ايداع نقدى | D70: دفعة من الايجارات على حسابكم بالراجحى | F70: 49800 | G70: -15514
A71: 10-11-1434 | B71: بدون | C71: ايداع شيك | D71: شيك رقم 101 عن شقة رقم 2 عمارة رقم 2 | F71: 17500 | G71: 1986
G78: =IF(AND(E78="",F78=""),"",G77+F78-E78) -> 
G142: =IF(AND(E142="",F142=""),"",G141+F142-E142) -> 
G206: =IF(AND(E206="",F206=""),"",G205+F206-E206) -> 
G270: =IF(AND(E270="",F270=""),"",G269+F270-E270) -> 
G334: =IF(AND(E334="",F334=""),"",G333+F334-E334) -> 
G398: =IF(AND(E398="",F398=""),"",G397+F398-E398) -> 
G462: =IF(AND(E462="",F462=""),"",G461+F462-E462) -> 
G526: =IF(AND(E526="",F526=""),"",G525+F526-E526) -> 
G590: =IF(AND(E590="",F590=""),"",G589+F590-E590) -> 
G654: =IF(AND(E654="",F654=""),"",G653+F654-E654) -> 
G718: =IF(AND(E718="",F718=""),"",G717+F718-E718) -> 
G782: =IF(AND(E782="",F782=""),"",G781+F782-E782) -> 
G846: =IF(AND(E846="",F846=""),"",G845+F846-E846) -> 
G910: =IF(AND(E910="",F910=""),"",G909+F910-E910) -> 
G974: =IF(AND(E974="",F974=""),"",G973+F974-E974) -> 
G1038: =IF(AND(E1038="",F1038=""),"",G1037+F1038-E1038) -> 

Sheet Rep1 (hidden)
E1: التاريخ :- | F1: =TODAY() -> 2017-03-10
E2: الموافق :- | F2: =TEXT(TODAY(),"b2YYYY/mM/dD") -> 1438/06/12
A4: مسلسل | B4: أسم المستأجر | C4: جهة العمل / الكفيل | D4: الشقة | E4: وصف الشقة | F4: الجوال
A5: =TEXT(IF($B5="","",ROW()-5),"00") -> 00 | B5: محمد عبدالله | C5: 1 | D5: 1 | E5: شقة 1 مبني 2 | F5: 15000

Sheet Rep2 (hidden)
D1: التاريخ :- | E1: =TODAY() -> 2017-03-10
D2: الموافق :- | E2: =TEXT(TODAY(),"b2YYYY/mM/dD") -> 1438/06/12
A4: مسلسل | B4: أسم المستأجر | C4: تاريخ الأستحقاق هـ | D4: تاريخ الأستحقاق ميلادي | E4: قيمة الأيجار
A5: =TEXT(IF($B5="","",ROW()-5),"00") -> 00 | B5: محمد عبدالله | C5: =IF(D5<>"",TEXT(D5,"b2YYYY/mM/dD"),"") -> 1435/01/29 | D5: 2013-12-02 | E5: 15000

Sheet Rep3 (hidden)
F1: التاريخ :- | G1: =TODAY() -> 2017-03-10
F2: الموافق :- | G2: =TEXT(TODAY(),"b2YYYY/mM/dD") -> 1438/06/12
A4: مسلسل | B4: التاريخ | C4: رقم السند | D4: نوع السند | E4: البيان | F4: مدين | G4: دائن
A5: =TEXT(IF($B5="","",ROW()-5),"00") -> 00 | B5: 2013-12-02 | C5: 250 | D5: نقدي | F5: 1500.555

Sheet reb4 (hidden)
F1: التاريخ :- | G1: =TODAY() -> 2017-03-10
F2: الموافق :- | G2: =TEXT(TODAY(),"b2YYYY/mM/dD") -> 1438/06/12
A4: مسلسل | B4: التاريخ | C4: رقم السند | D4: نوع السند | E4: البيان | F4: مدين | G4: دائن
A5: =TEXT(IF($B5="","",ROW()-5),"00") -> 00 | B5: 2013-12-02 | C5: 250 | D5: نقدي | F5: 1500.555

Sheet Contract (hidden)
N1: =IF($G$9<>"",VLOOKUP($G$9,DATA,14,0),"") -> 2010-01-16 | O1: =DATE(YEAR(N1)+1,MONTH(N1),DAY(N1)-12) -> 2011-01-04 | P1: =IF($G$9<>"",VLOOKUP($G$9,DATA,12,0),"") -> ربع سنوي
F9: رقم العقد | G9: 103
A10: =CONCATENATE(" تحرر العقد في يوم ",TEXT(TODAY(),"B2DDDD")," بتــاريخ ",TEXT(TODAY(),"YYYY/M/D")," م",," المــوافق ",TEXT(TODAY(),"b2YYYY/M/D"),"هـ")&" بين كل من " -> تحرر العقد في يوم الجمعة بتــاريخ 2017/3/10 م المــوافق 1438/6/12هـ بين كل من
A11: الطرف الأول :- المستأجر
A12: أسم المستأجر | B12: =IF($G$9<>"",VLOOKUP($G$9,DATA,2,0),"") -> معلمنا /عبدالله باقشير | C12: الجنسية | D12: =IF($G$9<>"",VLOOKUP($G$9,DATA,5,0),"") -> اليمن | F12: تليفون:- | G12: =IF($G$9<>"",VLOOKUP($G$9,DATA,9,0),"") -> 501234569
A13: جهة العمل / الكفيل | B13: =IF($G$9<>"",VLOOKUP($G$9,DATA,4,0),"") -> أوفيسنا | C13: رقم الهوية / الأقامة | E13: =IF($G$9<>"",VLOOKUP($G$9,DATA,3,0),"") -> 1234567892
A14: الطرف الثاني :- المؤجر
A15: أسم المالك | B15: منتديات اوفيسنا التعليمية | F15: تليفون:- | G15: =IF($G$9<>"",VLOOKUP($G$9,DATA,8,0),"") -> الدور ( 3 ) مبنى رقم ( 2 )
A16: العنوان | B16: المركز الرئيسي - الشارع العام - مدينة اوفيسنا التعليمية | F16: رقم الهوية:- | G16: 12345678950
A17: محل / شقة/ غرفة /عمارة / فيلا/ غير ذلك اذكرها | C17: =IF($G$9<>"",VLOOKUP($G$9,DATA,6,0),"") -> شقة | D17: رقم :- | E17: =IF($G$9<>"",VLOOKUP($G$9,DATA,7,0),"") -> 10 | F17: العنوان :- | G17: =IF($G$9<>"",VLOOKUP($G$9,DATA,8,0),"") -> الدور ( 3 ) مبنى رقم ( 2 )
A18: مدة الأيجار | B18: سنة | C18: يبدا في :- | D18: =IF($N$1<>"",TEXT($N$1,"b2YYYY/mM/dD"),"") -> 1431/02/01 | F18: وينتهي في :- | G18: =IF($O$1<>"",TEXT($O$1,"b2YYYY/mM/dD"),"") -> 1432/01/29
A19: مبلغ الايجار السنوي | B19: =IF($G$9<>"",VLOOKUP($G$9,DATA,10,0),"") -> 25000 | C19: مبلغ وقدره | D19: =NoToTxt(B19, " ريال"," هللة") -> فقط خمسة وعشرون ألف ريال لا غير
A20: كيفية الدفع | B20: =IF($P$1<>"",IF($P$1="شهري","يدفع كل شهر",IF($P$1="ربع سنوي","يدفع كل ثلاثة شهور",IF($P$1="نصف سنوي","يدفع كل سنة شهور"))),"") -> يدفع كل ثلاثة شهور | C20: قيمة الايجار حسب طريقة الدفع | F20: =IF($G$9<>"",VLOOKUP($G$9,DATA,13,0),"") -> 6250 | G20: ريال
A21: قراءة عداد الكهرباء عند دخول المستأجر | C21: كيلوات | E21: عداد المياه
A22: وقد اتفق الطرفان علي الشروط التالية :-
A23: 1- عقد الأيجار يحدد كعقد مستقل من المدة الأولي ولا يسري لأكثر من المدة الإيجارية المحدده أعلاه ، يتجدد العقد تلقائيا مالم يخطر أحد الطرفين الأخر بعدم الرغبة في التجديد قبل انتهاء العقد بشهرين .
A24: 2- الأيجار المتفق عليه هو ايجار ثابت حتي مدة انتهاء العقد المحددة اعلاه فقط .
A25: 3- لا يحق للمستاجر أعادة تأجير الوحدة محل العقد او جزءاً منها لشخص اخر او التنازل عن الأيجار أو المكان لغيره الا بعد موافقة كتابية من المالك أو من ينوب عنه.
A26: 4- جميع استهلاكات الكهرباء والمياه والتليفون إن وجد علي المستأجر بموجب قراءة العدادات إن وجدت أو التقدير المناسب إن لم تكن موجودة
A27: 5- كل حدث او تغيير يحدثه المستأجر من تكسير او تخريب في الوحدة المؤجرة محل هذا العقد فانه ملزم باصلاح هذا الحدث او دفع تكاليف اصلاحه.
A28: 6- عند غياب او سفر المستأجر لفترة محددة يجب أشعار المؤجر او من ينوب عليه تفاديا لما يحدث من تضرر اثناء غيابه .
A29: 7- من حق المالك انهاء العقد في حالة تاخر المستأجر عن سداد قيمة الأيجار المتفق عليها وفي المواعيد المحددة أو عدم محافظته علي الوحدة المؤجرة له.
A30: 8- لا يحق للمستاجر مطالبة المؤجر باي تكاليف مقابل تحسينات او اصلاحات نتيجة استخدامه للوحدة المؤجرة له .
A31: 9- لا يحق للمستاجر التغيير في الوحدة المؤجرة له مما يؤثر علي سلامة العقار او يتسبب في ايذاء للجيران .
A32: 10- رسوم نظافة المدخل والسلم واستهلاك الكهرباء والمياه والبلدية علي حساب المستأجر.
A33: 11- المالك والمستأجر ملزمان بما جاء في هذا العقد بعد التوقيع عليه .
A34: 12- حرر هذا العقد من نسختين نسخة للمالك واخري للمستأجر.
A35: ملاحظات :-
A38: المستأجر | D38: المالك/ الوكيل
A39: =B12 -> معلمنا /عبدالله باقشير
